[Event "Titled Tuesday Blitz April 11 Early 2023"]
[White "Dominguez Pons, Eric"]
[Black "Karthikeyan, Murali"]
[WhiteFideId "2262916"]
[BlackFideId "5074452"]
[WhiteElo "2302"]
[BlackElo "2523"]
[Result "1-0"]
[Round "04"]
[TimeControl "180+2"]
[Date "2023.04.11"]
[WhiteClock "0:00:14"]
[BlackClock "0:00:02"]

1. d4 {[%clk 0:02:59]}  Nf6 {[%clk 0:03:00]} 2. Nf3 {[%clk 0:02:58]}  g6 {[%clk 0:03:00]} 3. Nbd2 {[%clk 0:02:58]}  d5 {[%clk 0:03:00]} 4. e3 {[%clk 0:02:58]}  Bg7 {[%clk 0:03:00]} 5. Bd3 {[%clk 0:02:57]}  O-O {[%clk 0:03:01]} 6. O-O {[%clk 0:02:57]}  c5 {[%clk 0:03:02]} 7. c3 {[%clk 0:02:57]}  b6 {[%clk 0:02:59]} 8. e4 {[%clk 0:02:55]}  dxe4 {[%clk 0:02:57]} 9. Nxe4 {[%clk 0:02:54]}  Nbd7 {[%clk 0:02:57]} 10. dxc5 {[%clk 0:02:51]}  Nxc5 {[%clk 0:02:55]} 11. Nxc5 {[%clk 0:02:47]}  bxc5 {[%clk 0:02:56]} 12. Be3 {[%clk 0:02:45]}  Qc7 {[%clk 0:02:55]} 13. Qc2 {[%clk 0:02:28]}  Bb7 {[%clk 0:02:54]} 14. Nd2 {[%clk 0:02:24]}  Ng4 {[%clk 0:02:50]} 15. g3 {[%clk 0:02:16]}  Nxe3 {[%clk 0:02:50]} 16. fxe3 {[%clk 0:02:17]}  Rad8 {[%clk 0:02:50]} 17. Rad1 {[%clk 0:02:15]}  Bh6 {[%clk 0:02:45]} 18. Nc4 {[%clk 0:02:04]}  Rd7 {[%clk 0:02:25]} 19. Be4 {[%clk 0:02:02]}  Ba6 {[%clk 0:02:21]} 20. Qa4 {[%clk 0:01:55]}  Bxc4 {[%clk 0:02:15]} 21. Qxc4 {[%clk 0:01:56]}  Bxe3+ {[%clk 0:02:16]} 22. Kg2 {[%clk 0:01:57]}  e6 {[%clk 0:02:16]} 23. h4 {[%clk 0:01:43]}  Kg7 {[%clk 0:02:13]} 24. h5 {[%clk 0:01:42]}  Rxd1 {[%clk 0:02:12]} 25. Rxd1 {[%clk 0:01:41]}  Qe5 {[%clk 0:02:13]} 26. hxg6 {[%clk 0:01:39]}  hxg6 {[%clk 0:02:14]} 27. Rd7 {[%clk 0:01:34]}  Bg5 {[%clk 0:01:57]} 28. Qd3 {[%clk 0:01:18]}  Kg8 {[%clk 0:01:29]} 29. Bxg6 {[%clk 0:01:06]}  Qf6 {[%clk 0:00:49]} 30. Bh7+ {[%clk 0:01:02]}  Kg7 {[%clk 0:00:48]} 31. Be4 {[%clk 0:00:49]}  a5 {[%clk 0:00:49]} 32. Qf3 {[%clk 0:00:49]}  Rb8 {[%clk 0:00:45]} 33. Qxf6+ {[%clk 0:00:46]}  Kxf6 {[%clk 0:00:43]} 34. b3 {[%clk 0:00:45]}  Ke5 {[%clk 0:00:41]} 35. Bc6 {[%clk 0:00:42]}  f5 {[%clk 0:00:40]} 36. Ra7 {[%clk 0:00:40]}  Bd8 {[%clk 0:00:20]} 37. Bd7 {[%clk 0:00:39]}  Bb6 {[%clk 0:00:19]} 38. Ra6 {[%clk 0:00:36]}  Kd6 {[%clk 0:00:18]} 39. Bb5 {[%clk 0:00:36]}  e5 {[%clk 0:00:18]} 40. Kf3 {[%clk 0:00:36]}  Ke6 {[%clk 0:00:15]} 41. a4 {[%clk 0:00:34]}  Kf6 {[%clk 0:00:15]} 42. b4 {[%clk 0:00:34]}  cxb4 {[%clk 0:00:12]} 43. cxb4 {[%clk 0:00:35]}  Kg5 {[%clk 0:00:09]} 44. bxa5 {[%clk 0:00:34]}  Bc7 {[%clk 0:00:10]} 45. Ra7 {[%clk 0:00:31]}  e4+ {[%clk 0:00:10]} 46. Kf2 {[%clk 0:00:30]}  Be5 {[%clk 0:00:10]} 47. Rf7 {[%clk 0:00:28]}  Bd4+ {[%clk 0:00:06]} 48. Ke2 {[%clk 0:00:29]}  Rh8 {[%clk 0:00:05]} 49. Bd7 {[%clk 0:00:27]}  Rh2+ {[%clk 0:00:05]} 50. Kd1 {[%clk 0:00:27]}  e3 {[%clk 0:00:04]} 51. Rxf5+ {[%clk 0:00:27]}  Kg6 {[%clk 0:00:04]} 52. Rf3 {[%clk 0:00:22]}  e2+ {[%clk 0:00:05]} 53. Ke1 {[%clk 0:00:22]}  Bc5 {[%clk 0:00:04]} 54. Rb3 {[%clk 0:00:19]}  Bd6 {[%clk 0:00:02]} 55. Bg4 {[%clk 0:00:17]}  Rg2 {[%clk 0:00:02]} 56. Bxe2 {[%clk 0:00:17]}  Rxg3 {[%clk 0:00:02]} 57. Rb6 {[%clk 0:00:14]} 1-0


[Site "https://www.chess.com"]

[Event "Titled Tuesday Blitz April 11 Early 2023"]
[White "Principe, Gerson"]
[Black "Vysochin, Spartak"]
[WhiteFideId "3804550"]
[BlackFideId "14103516"]
[WhiteElo "2229"]
[BlackElo "2367"]
[Result "0-1"]
[Round "04"]
[TimeControl "180+2"]
[Date "2023.04.11"]
[WhiteClock "0:00:01"]
[BlackClock "0:00:07"]

1. d4 {[%clk 0:02:59]}  d5 {[%clk 0:02:51]} 2. Nf3 {[%clk 0:02:59]}  Nf6 {[%clk 0:02:48]} 3. e3 {[%clk 0:02:52]}  c5 {[%clk 0:02:46]} 4. Be2 {[%clk 0:02:52]}  Nc6 {[%clk 0:02:44]} 5. O-O {[%clk 0:02:52]}  Bg4 {[%clk 0:02:44]} 6. Nbd2 {[%clk 0:02:47]}  e6 {[%clk 0:02:43]} 7. b3 {[%clk 0:02:47]}  cxd4 {[%clk 0:02:40]} 8. exd4 {[%clk 0:02:46]}  Bd6 {[%clk 0:02:39]} 9. Bb2 {[%clk 0:02:46]}  O-O {[%clk 0:02:39]} 10. c4 {[%clk 0:02:47]}  Rc8 {[%clk 0:02:37]} 11. Ne5 {[%clk 0:02:24]}  Bxe2 {[%clk 0:02:29]} 12. Qxe2 {[%clk 0:02:25]}  dxc4 {[%clk 0:02:18]} 13. Ndxc4 {[%clk 0:02:14]}  Nd5 {[%clk 0:02:06]} 14. Rac1 {[%clk 0:01:47]}  Bb8 {[%clk 0:01:48]} 15. Rfd1 {[%clk 0:01:43]}  Qg5 {[%clk 0:01:43]} 16. g3 {[%clk 0:01:35]}  Rfd8 {[%clk 0:01:35]} 17. Qf3 {[%clk 0:01:27]}  Qf6 {[%clk 0:01:20]} 18. Qe2 {[%clk 0:01:05]}  h6 {[%clk 0:01:07]} 19. h4 {[%clk 0:00:58]}  Nce7 {[%clk 0:00:59]} 20. Na5 {[%clk 0:00:33]}  b6 {[%clk 0:00:52]} 21. Nac4 {[%clk 0:00:21]}  Nf5 {[%clk 0:00:50]} 22. a3 {[%clk 0:00:20]}  Bd6 {[%clk 0:00:23]} 23. Nd2 {[%clk 0:00:16]}  Qe7 {[%clk 0:00:19]} 24. Nc6 {[%clk 0:00:13]}  Rxc6 {[%clk 0:00:19]} 25. Rxc6 {[%clk 0:00:14]}  Bxa3 {[%clk 0:00:19]} 26. Nf3 {[%clk 0:00:11]}  Bxb2 {[%clk 0:00:18]} 27. Qxb2 {[%clk 0:00:11]}  Qf6 {[%clk 0:00:19]} 28. Qe2 {[%clk 0:00:07]}  Nfe7 {[%clk 0:00:14]} 29. Rcc1 {[%clk 0:00:06]}  Nf5 {[%clk 0:00:12]} 30. Ne5 {[%clk 0:00:06]}  Nde7 {[%clk 0:00:11]} 31. Rd3 {[%clk 0:00:04]}  Nxd4 {[%clk 0:00:09]} 32. Qd1 {[%clk 0:00:02]}  Qxe5 {[%clk 0:00:07]} 33. Rc4 {[%clk 0:00:01]}  Nef5 {[%clk 0:00:07]} 0-1


[Site "https://www.chess.com"]

[Event "Titled Tuesday Blitz April 11 Early 2023"]
[White "Rangel, Daniel"]
[Black "Chernobay, Artem"]
[WhiteFideId "2124475"]
[BlackFideId "4167406"]
[WhiteElo "2256"]
[BlackElo "2474"]
[Result "1-0"]
[Round "04"]
[TimeControl "180+2"]
[Date "2023.04.11"]
[WhiteClock "0:00:04"]
[BlackClock "0:00:01"]

1. c4 {[%clk 0:03:00]}  e5 {[%clk 0:02:58]} 2. g3 {[%clk 0:02:59]}  Nf6 {[%clk 0:02:57]} 3. Bg2 {[%clk 0:02:58]}  d5 {[%clk 0:02:57]} 4. cxd5 {[%clk 0:02:59]}  Nxd5 {[%clk 0:02:58]} 5. Nf3 {[%clk 0:02:59]}  Nc6 {[%clk 0:02:57]} 6. O-O {[%clk 0:02:57]}  Nb6 {[%clk 0:02:57]} 7. b3 {[%clk 0:02:56]}  Be7 {[%clk 0:02:56]} 8. Bb2 {[%clk 0:02:55]}  f6 {[%clk 0:02:56]} 9. d4 {[%clk 0:02:52]}  e4 {[%clk 0:02:56]} 10. Nfd2 {[%clk 0:02:45]}  f5 {[%clk 0:02:52]} 11. Nc4 {[%clk 0:02:43]}  O-O {[%clk 0:02:38]} 12. e3 {[%clk 0:02:37]}  Be6 {[%clk 0:02:37]} 13. Qe2 {[%clk 0:02:32]}  Nb4 {[%clk 0:02:31]} 14. Ba3 {[%clk 0:02:23]}  N6d5 {[%clk 0:02:18]} 15. Rc1 {[%clk 0:02:08]}  Nd3 {[%clk 0:02:05]} 16. Rd1 {[%clk 0:01:55]}  Bxa3 {[%clk 0:01:39]} 17. Ncxa3 {[%clk 0:01:56]}  a5 {[%clk 0:01:30]} 18. Qd2 {[%clk 0:01:42]}  a4 {[%clk 0:01:25]} 19. Nc3 {[%clk 0:01:40]}  axb3 {[%clk 0:01:20]} 20. axb3 {[%clk 0:01:36]}  N5b4 {[%clk 0:01:17]} 21. Nc4 {[%clk 0:01:32]}  c6 {[%clk 0:01:12]} 22. Bf1 {[%clk 0:01:25]}  b5 {[%clk 0:01:07]} 23. Rxa8 {[%clk 0:01:20]}  Qxa8 {[%clk 0:01:06]} 24. Ne5 {[%clk 0:01:21]}  Bxb3 {[%clk 0:01:03]} 25. Rb1 {[%clk 0:01:17]}  Bc4 {[%clk 0:00:42]} 26. Nxc4 {[%clk 0:01:05]}  bxc4 {[%clk 0:00:43]} 27. Nd1 {[%clk 0:00:50]}  Qa3 {[%clk 0:00:37]} 28. Bxd3 {[%clk 0:00:36]}  Nxd3 {[%clk 0:00:36]} 29. Qc3 {[%clk 0:00:28]}  Qxc3 {[%clk 0:00:33]} 30. Nxc3 {[%clk 0:00:29]}  Ra8 {[%clk 0:00:33]} 31. d5 {[%clk 0:00:24]}  cxd5 {[%clk 0:00:30]} 32. Nxd5 {[%clk 0:00:25]}  Ra5 {[%clk 0:00:26]} 33. Ne7+ {[%clk 0:00:20]}  Kf7 {[%clk 0:00:25]} 34. Nc6 {[%clk 0:00:20]}  Rc5 {[%clk 0:00:22]} 35. Rb7+ {[%clk 0:00:20]}  Kf6 {[%clk 0:00:20]} 36. Nd4 {[%clk 0:00:20]}  c3 {[%clk 0:00:19]} 37. Rb6+ {[%clk 0:00:20]}  Kf7 {[%clk 0:00:16]} 38. Rb7+ {[%clk 0:00:19]}  Ke8 {[%clk 0:00:12]} 39. Nc2 {[%clk 0:00:16]}  Kd8 {[%clk 0:00:09]} 40. Rxg7 {[%clk 0:00:15]}  Rb5 {[%clk 0:00:09]} 41. Rxh7 {[%clk 0:00:15]}  Rb2 {[%clk 0:00:09]} 42. Nd4 {[%clk 0:00:15]}  Ne1 {[%clk 0:00:02]} 43. Rh8+ {[%clk 0:00:02]}  Kd7 {[%clk 0:00:01]} 44. Rh7+ {[%clk 0:00:02]}  Kd6 {[%clk 0:00:02]} 45. Rh8 {[%clk 0:00:03]}  Nf3+ {[%clk 0:00:01]} 46. Kg2 {[%clk 0:00:04]} 1-0


[Site "https://www.chess.com"]

[Event "Titled Tuesday Blitz April 11 Early 2023"]
[White "Mendez Fortes, Eduardo Jesus"]
[Black "Shuvalov, Evgenij"]
[WhiteFideId "3502376"]
[BlackFideId "4187237"]
[WhiteElo "2307"]
[BlackElo "2080"]
[Result "1/2-1/2"]
[Round "04"]
[TimeControl "180+2"]
[Date "2023.04.11"]
[WhiteClock "0:00:47"]
[BlackClock "0:00:19"]

1. e4 {[%clk 0:03:00]}  e6 {[%clk 0:02:56]} 2. d4 {[%clk 0:03:00]}  d5 {[%clk 0:02:56]} 3. Nd2 {[%clk 0:03:01]}  c5 {[%clk 0:02:55]} 4. exd5 {[%clk 0:03:01]}  exd5 {[%clk 0:02:56]} 5. Ngf3 {[%clk 0:03:01]}  Nc6 {[%clk 0:02:57]} 6. Bb5 {[%clk 0:03:01]}  Qe7+ {[%clk 0:02:57]} 7. Be2 {[%clk 0:03:01]}  Qc7 {[%clk 0:02:57]} 8. O-O {[%clk 0:03:01]}  Nf6 {[%clk 0:02:56]} 9. Re1 {[%clk 0:03:00]}  Be6 {[%clk 0:02:55]} 10. h3 {[%clk 0:02:56]}  cxd4 {[%clk 0:02:47]} 11. Nb3 {[%clk 0:02:56]}  Bb4 {[%clk 0:02:47]} 12. Bd2 {[%clk 0:02:55]}  Bxd2 {[%clk 0:02:47]} 13. Qxd2 {[%clk 0:02:56]}  Ne4 {[%clk 0:02:43]} 14. Qd1 {[%clk 0:02:53]}  O-O {[%clk 0:02:39]} 15. Nfxd4 {[%clk 0:02:49]}  Nxd4 {[%clk 0:02:38]} 16. Nxd4 {[%clk 0:02:48]}  Qf4 {[%clk 0:02:31]} 17. Bf3 {[%clk 0:02:44]}  Rae8 {[%clk 0:02:21]} 18. c3 {[%clk 0:02:33]}  Bc8 {[%clk 0:02:13]} 19. Re3 {[%clk 0:02:17]}  Nxf2 {[%clk 0:01:56]} 20. Rxe8 {[%clk 0:02:09]}  Nxd1 {[%clk 0:01:55]} 21. Rxf8+ {[%clk 0:02:09]}  Kxf8 {[%clk 0:01:56]} 22. Rxd1 {[%clk 0:02:09]}  Be6 {[%clk 0:01:33]} 23. Re1 {[%clk 0:02:06]}  Qf6 {[%clk 0:01:28]} 24. Re2 {[%clk 0:02:04]}  g6 {[%clk 0:01:24]} 25. Rf2 {[%clk 0:02:02]}  Kg7 {[%clk 0:01:22]} 26. Bxd5 {[%clk 0:01:55]}  Qe5 {[%clk 0:01:12]} 27. Bxe6 {[%clk 0:01:39]}  fxe6 {[%clk 0:01:12]} 28. Re2 {[%clk 0:01:39]}  Qc5 {[%clk 0:01:02]} 29. Kh1 {[%clk 0:01:33]}  Kf7 {[%clk 0:00:58]} 30. Rxe6 {[%clk 0:01:24]}  Qxd4 {[%clk 0:00:52]} 31. cxd4 {[%clk 0:01:23]}  Kxe6 {[%clk 0:00:52]} 32. Kh2 {[%clk 0:01:22]}  Kd5 {[%clk 0:00:52]} 33. Kg3 {[%clk 0:01:22]}  Kxd4 {[%clk 0:00:52]} 34. Kf4 {[%clk 0:01:23]}  h6 {[%clk 0:00:52]} 35. h4 {[%clk 0:01:20]}  b5 {[%clk 0:00:51]} 36. g4 {[%clk 0:01:11]}  b4 {[%clk 0:00:49]} 37. h5 {[%clk 0:01:04]}  gxh5 {[%clk 0:00:40]} 38. gxh5 {[%clk 0:01:04]}  Kd3 {[%clk 0:00:25]} 39. Kf5 {[%clk 0:01:04]}  Kc2 {[%clk 0:00:26]} 40. Kg6 {[%clk 0:01:04]}  Kxb2 {[%clk 0:00:26]} 41. Kxh6 {[%clk 0:01:04]}  Kxa2 {[%clk 0:00:26]} 42. Kg5 {[%clk 0:01:05]}  b3 {[%clk 0:00:27]} 43. h6 {[%clk 0:01:06]}  b2 {[%clk 0:00:27]} 44. h7 {[%clk 0:01:06]}  b1=Q {[%clk 0:00:27]} 45. h8=Q {[%clk 0:01:06]}  Qg1+ {[%clk 0:00:25]} 46. Kf5 {[%clk 0:01:03]}  Qf2+ {[%clk 0:00:25]} 47. Ke4 {[%clk 0:01:02]}  Qe2+ {[%clk 0:00:23]} 48. Kd5 {[%clk 0:01:01]}  Qd3+ {[%clk 0:00:22]} 49. Kc6 {[%clk 0:00:58]}  a5 {[%clk 0:00:20]} 50. Qg8+ {[%clk 0:00:50]}  Kb2 {[%clk 0:00:18]} 51. Qg7+ {[%clk 0:00:47]}  Qc3+ {[%clk 0:00:17]} 52. Qxc3+ {[%clk 0:00:47]}  Kxc3 {[%clk 0:00:18]} 53. Kb5 {[%clk 0:00:47]}  a4 {[%clk 0:00:19]} 54. Kxa4 {[%clk 0:00:47]} 1/2-1/2


[Site "https://www.chess.com"]

[Event "Titled Tuesday Blitz April 11 Early 2023"]
[White "polandchessplayer"]
[Black "Pniaczek, Marek"]
[BlackFideId "21800421"]
[WhiteElo "2655"]
[BlackElo "2138"]
[Result "1-0"]
[Round "04"]
[TimeControl "180+2"]
[Date "2023.04.11"]
[WhiteClock "0:02:21"]
[BlackClock "0:01:28"]

1. c4 {[%clk 0:03:00]}  e6 {[%clk 0:02:57]} 2. Nf3 {[%clk 0:03:00]}  Nf6 {[%clk 0:02:56]} 3. g3 {[%clk 0:03:00]}  d5 {[%clk 0:02:55]} 4. Bg2 {[%clk 0:03:01]}  Be7 {[%clk 0:02:55]} 5. O-O {[%clk 0:03:01]}  O-O {[%clk 0:02:56]} 6. d4 {[%clk 0:03:02]}  dxc4 {[%clk 0:02:56]} 7. a4 {[%clk 0:02:59]}  c6 {[%clk 0:02:46]} 8. Ne5 {[%clk 0:02:58]}  Nbd7 {[%clk 0:02:09]} 9. Nxc4 {[%clk 0:02:57]}  c5 {[%clk 0:02:07]} 10. Nc3 {[%clk 0:02:46]}  cxd4 {[%clk 0:02:05]} 11. Qxd4 {[%clk 0:02:47]}  Bc5 {[%clk 0:02:05]} 12. Qd3 {[%clk 0:02:39]}  Qe7 {[%clk 0:02:04]} 13. Bf4 {[%clk 0:02:36]}  e5 {[%clk 0:01:52]} 14. Bg5 {[%clk 0:02:36]}  Nb6 {[%clk 0:01:49]} 15. Nxb6 {[%clk 0:02:28]}  axb6 {[%clk 0:01:48]} 16. Nd5 {[%clk 0:02:24]}  Qe6 {[%clk 0:01:28]} 17. Nc7 {[%clk 0:02:21]} 1-0


[Site "https://www.chess.com"]

[Event "Titled Tuesday Blitz April 11 Early 2023"]
[White "Kvaloy, Aksel Bu"]
[Black "Jumanov, Elbek"]
[WhiteFideId "1528815"]
[BlackFideId "14202905"]
[WhiteElo "2208"]
[BlackElo "2055"]
[Result "1-0"]
[Round "04"]
[TimeControl "180+2"]
[Date "2023.04.11"]
[WhiteClock "0:00:49"]
[BlackClock "0:00:05"]

1. e4 {[%clk 0:03:00]}  c5 {[%clk 0:02:59]} 2. Nf3 {[%clk 0:03:00]}  e6 {[%clk 0:02:59]} 3. d4 {[%clk 0:03:00]}  cxd4 {[%clk 0:03:00]} 4. Nxd4 {[%clk 0:03:01]}  Nf6 {[%clk 0:03:00]} 5. Nc3 {[%clk 0:03:01]}  d6 {[%clk 0:03:00]} 6. g4 {[%clk 0:03:01]}  h6 {[%clk 0:03:00]} 7. h4 {[%clk 0:02:59]}  Nc6 {[%clk 0:02:58]} 8. Rg1 {[%clk 0:02:58]}  h5 {[%clk 0:02:51]} 9. g5 {[%clk 0:02:57]}  Ng4 {[%clk 0:02:51]} 10. Be2 {[%clk 0:02:47]}  Qb6 {[%clk 0:02:47]} 11. Bxg4 {[%clk 0:02:31]}  Qxd4 {[%clk 0:02:32]} 12. Be3 {[%clk 0:02:12]}  Qb4 {[%clk 0:02:09]} 13. Be2 {[%clk 0:02:11]}  Qxb2 {[%clk 0:02:07]} 14. Nb5 {[%clk 0:02:11]}  Kd7 {[%clk 0:01:47]} 15. Bc5 {[%clk 0:01:49]}  Qe5 {[%clk 0:01:06]} 16. Be3 {[%clk 0:01:40]}  a6 {[%clk 0:01:00]} 17. Na3 {[%clk 0:01:40]}  Qc3+ {[%clk 0:00:54]} 18. Qd2 {[%clk 0:01:37]}  Qxa1+ {[%clk 0:00:53]} 19. Bd1 {[%clk 0:01:37]}  d5 {[%clk 0:00:48]} 20. Nc4 {[%clk 0:01:37]}  Bb4 {[%clk 0:00:46]} 21. Nb6+ {[%clk 0:01:35]}  Ke7 {[%clk 0:00:46]} 22. Qxb4+ {[%clk 0:01:32]}  Nxb4 {[%clk 0:00:46]} 23. Bc5+ {[%clk 0:01:32]}  Kd8 {[%clk 0:00:44]} 24. Bxb4 {[%clk 0:01:33]}  Qd4 {[%clk 0:00:39]} 25. Ba5 {[%clk 0:01:33]}  Qxe4+ {[%clk 0:00:33]} 26. Be2 {[%clk 0:01:33]}  Rb8 {[%clk 0:00:24]} 27. f3 {[%clk 0:01:33]}  Qd4 {[%clk 0:00:21]} 28. Rg3 {[%clk 0:01:27]}  Ke7 {[%clk 0:00:18]} 29. f4 {[%clk 0:01:27]}  Qxf4 {[%clk 0:00:17]} 30. Rb3 {[%clk 0:01:27]}  Bd7 {[%clk 0:00:16]} 31. Bb4+ {[%clk 0:01:27]}  Kd8 {[%clk 0:00:16]} 32. c4 {[%clk 0:01:27]}  Bc6 {[%clk 0:00:15]} 33. cxd5 {[%clk 0:01:26]}  Bxd5 {[%clk 0:00:15]} 34. Rc3 {[%clk 0:01:26]}  Qxh4+ {[%clk 0:00:12]} 35. Kd2 {[%clk 0:01:25]}  Qxg5+ {[%clk 0:00:12]} 36. Kc2 {[%clk 0:01:25]}  h4 {[%clk 0:00:12]} 37. Bd6 {[%clk 0:01:25]}  h3 {[%clk 0:00:11]} 38. Bxb8 {[%clk 0:01:25]}  Ke7 {[%clk 0:00:11]} 39. Bh2 {[%clk 0:01:23]}  Qf5+ {[%clk 0:00:10]} 40. Kd2 {[%clk 0:01:22]}  Qg5+ {[%clk 0:00:10]} 41. Kc2 {[%clk 0:01:22]}  Qg2 {[%clk 0:00:10]} 42. Rc7+ {[%clk 0:01:22]}  Kf6 {[%clk 0:00:09]} 43. Nd7+ {[%clk 0:01:21]}  Kg6 {[%clk 0:00:09]} 44. Ne5+ {[%clk 0:01:21]}  Kh6 {[%clk 0:00:09]} 45. Nxf7+ {[%clk 0:01:21]}  Kh7 {[%clk 0:00:08]} 46. Kd1 {[%clk 0:01:21]}  Qxh2 {[%clk 0:00:08]} 47. Bd3+ {[%clk 0:01:21]}  g6 {[%clk 0:00:08]} 48. Ne5+ {[%clk 0:01:20]}  Kh6 {[%clk 0:00:08]} 49. Ng4+ {[%clk 0:01:20]}  Kg5 {[%clk 0:00:08]} 50. Nxh2 {[%clk 0:01:21]}  Kf4 {[%clk 0:00:09]} 51. Ke2 {[%clk 0:01:21]}  Kg3 {[%clk 0:00:09]} 52. Nf1+ {[%clk 0:01:20]}  Kg2 {[%clk 0:00:09]} 53. Rg7 {[%clk 0:01:19]}  h2 {[%clk 0:00:08]} 54. Rxg6+ {[%clk 0:01:19]}  Kh3 {[%clk 0:00:08]} 55. Ng3 {[%clk 0:01:02]}  h1=Q {[%clk 0:00:06]} 56. Nxh1 {[%clk 0:01:02]}  Bxh1 {[%clk 0:00:07]} 57. Rxe6 {[%clk 0:01:03]}  Bc6 {[%clk 0:00:07]} 58. Rg6 {[%clk 0:00:55]}  Re8+ {[%clk 0:00:05]} 59. Kf2 {[%clk 0:00:55]}  Rf8+ {[%clk 0:00:06]} 60. Ke3 {[%clk 0:00:55]}  Re8+ {[%clk 0:00:06]} 61. Kf4 {[%clk 0:00:55]}  Rf8+ {[%clk 0:00:06]} 62. Bf5+ {[%clk 0:00:56]}  Kh2 {[%clk 0:00:07]} 63. Rg5 {[%clk 0:00:53]}  Bd7 {[%clk 0:00:06]} 64. a4 {[%clk 0:00:48]}  Bxf5 {[%clk 0:00:04]} 65. Rxf5 {[%clk 0:00:49]}  Kg2 {[%clk 0:00:05]} 66. Rxf8 {[%clk 0:00:49]} 1-0


[Site "https://www.chess.com"]

[Event "Titled Tuesday Blitz April 11 Early 2023"]
[White "Bochnicka, Vladimir"]
[Black "Mamedov, Edgar"]
[WhiteFideId "14943450"]
[BlackFideId "13739980"]
[WhiteElo "2094"]
[BlackElo "2330"]
[Result "1-0"]
[Round "04"]
[TimeControl "180+2"]
[Date "2023.04.11"]
[WhiteClock "0:00:04"]
[BlackClock "0:00:01"]

1. e4 {[%clk 0:03:00]}  c6 {[%clk 0:02:58]} 2. d4 {[%clk 0:03:00]}  d5 {[%clk 0:02:58]} 3. e5 {[%clk 0:03:01]}  c5 {[%clk 0:02:57]} 4. dxc5 {[%clk 0:03:01]}  Nc6 {[%clk 0:02:56]} 5. Nf3 {[%clk 0:03:01]}  e6 {[%clk 0:02:55]} 6. a3 {[%clk 0:02:59]}  Bxc5 {[%clk 0:02:54]} 7. b4 {[%clk 0:02:59]}  Bb6 {[%clk 0:02:54]} 8. Bb2 {[%clk 0:03:00]}  f6 {[%clk 0:02:53]} 9. Nbd2 {[%clk 0:02:57]}  fxe5 {[%clk 0:02:52]} 10. Nxe5 {[%clk 0:02:57]}  Nf6 {[%clk 0:02:52]} 11. Bd3 {[%clk 0:02:56]}  O-O {[%clk 0:02:50]} 12. O-O {[%clk 0:02:56]}  a5 {[%clk 0:02:50]} 13. b5 {[%clk 0:02:51]}  Nxe5 {[%clk 0:02:50]} 14. Bxe5 {[%clk 0:02:51]}  Bd7 {[%clk 0:02:47]} 15. c4 {[%clk 0:02:45]}  Be8 {[%clk 0:02:43]} 16. Rc1 {[%clk 0:02:42]}  a4 {[%clk 0:02:43]} 17. c5 {[%clk 0:02:41]}  Bc7 {[%clk 0:02:39]} 18. Nf3 {[%clk 0:02:38]}  Bh5 {[%clk 0:02:38]} 19. Re1 {[%clk 0:02:26]}  Ng4 {[%clk 0:01:49]} 20. Bxc7 {[%clk 0:02:04]}  Qxc7 {[%clk 0:01:48]} 21. h3 {[%clk 0:01:52]}  Nxf2 {[%clk 0:01:13]} 22. Bxh7+ {[%clk 0:01:15]}  Kxh7 {[%clk 0:00:53]} 23. Qc2+ {[%clk 0:01:15]}  Ne4 {[%clk 0:00:48]} 24. Ng5+ {[%clk 0:01:16]}  Kg8 {[%clk 0:00:44]} 25. Rxe4 {[%clk 0:00:51]}  dxe4 {[%clk 0:00:33]} 26. Qxe4 {[%clk 0:00:52]}  g6 {[%clk 0:00:32]} 27. Nxe6 {[%clk 0:00:49]}  Rae8 {[%clk 0:00:28]} 28. Qc4 {[%clk 0:00:43]}  Qf7 {[%clk 0:00:13]} 29. Nxf8 {[%clk 0:00:43]}  Qxc4 {[%clk 0:00:09]} 30. Rxc4 {[%clk 0:00:44]}  Kxf8 {[%clk 0:00:09]} 31. Rxa4 {[%clk 0:00:43]}  Be2 {[%clk 0:00:08]} 32. Rf4+ {[%clk 0:00:38]}  Kg7 {[%clk 0:00:07]} 33. a4 {[%clk 0:00:37]}  Rc8 {[%clk 0:00:05]} 34. Re4 {[%clk 0:00:34]}  Bd1 {[%clk 0:00:04]} 35. c6 {[%clk 0:00:18]}  bxc6 {[%clk 0:00:03]} 36. b6 {[%clk 0:00:19]}  Bc2 {[%clk 0:00:02]} 37. Rd4 {[%clk 0:00:12]}  Rb8 {[%clk 0:00:02]} 38. a5 {[%clk 0:00:12]}  c5 {[%clk 0:00:02]} 39. Rd7+ {[%clk 0:00:10]}  Kf6 {[%clk 0:00:02]} 40. Rc7 {[%clk 0:00:04]}  Be4 {[%clk 0:00:02]} 41. Rxc5 {[%clk 0:00:04]}  Bb7 {[%clk 0:00:01]} 42. Kf2 {[%clk 0:00:04]}  Ke6 {[%clk 0:00:01]} 43. Rc7 {[%clk 0:00:04]}  Kd6 {[%clk 0:00:01]} 44. Rg7 {[%clk 0:00:05]}  Be4 {[%clk 0:00:01]} 45. Ke3 {[%clk 0:00:05]}  Bf5 {[%clk 0:00:01]} 46. g4 {[%clk 0:00:06]}  Bc2 {[%clk 0:00:01]} 47. h4 {[%clk 0:00:06]}  Kc6 {[%clk 0:00:01]} 48. Kf4 {[%clk 0:00:06]}  Kb5 {[%clk 0:00:01]} 49. Ra7 {[%clk 0:00:06]}  Rf8+ {[%clk 0:00:01]} 50. Kg5 {[%clk 0:00:06]}  Rg8 {[%clk 0:00:01]} 51. b7 {[%clk 0:00:06]}  Rb8 {[%clk 0:00:01]} 52. h5 {[%clk 0:00:06]}  Kc6 {[%clk 0:00:01]} 53. Ra8 {[%clk 0:00:04]}  Rxb7 {[%clk 0:00:01]} 54. Rc8+ {[%clk 0:00:05]}  Kd7 {[%clk 0:00:01]} 55. Rxc2 {[%clk 0:00:05]}  gxh5 {[%clk 0:00:02]} 56. Kxh5 {[%clk 0:00:03]}  Rb5+ {[%clk 0:00:02]} 57. g5 {[%clk 0:00:04]}  Rxa5 {[%clk 0:00:03]} 58. Re2 {[%clk 0:00:04]}  Kd6 {[%clk 0:00:03]} 59. Kg6 {[%clk 0:00:04]}  Ra6 {[%clk 0:00:03]} 60. Kf7 {[%clk 0:00:04]}  Ra7+ {[%clk 0:00:03]} 61. Kf6 {[%clk 0:00:05]}  Kd7 {[%clk 0:00:03]} 62. g6 {[%clk 0:00:05]}  Ra6+ {[%clk 0:00:03]} 63. Kf7 {[%clk 0:00:05]}  Ra1 {[%clk 0:00:03]} 64. g7 {[%clk 0:00:04]}  Rf1+ {[%clk 0:00:03]} 65. Kg8 {[%clk 0:00:05]}  Rf4 {[%clk 0:00:03]} 66. Kh7 {[%clk 0:00:04]}  Rh4+ {[%clk 0:00:02]} 67. Kg8 {[%clk 0:00:04]}  Rg4 {[%clk 0:00:01]} 68. Re5 {[%clk 0:00:04]}  Kd6 {[%clk 0:00:01]} 69. Re8 {[%clk 0:00:05]}  Kd7 {[%clk 0:00:02]} 70. Re3 {[%clk 0:00:05]}  Kd6 {[%clk 0:00:02]} 71. Kf8 {[%clk 0:00:04]}  Rf4+ {[%clk 0:00:02]} 72. Ke8 {[%clk 0:00:04]}  Rg4 {[%clk 0:00:02]} 73. Kf7 {[%clk 0:00:04]}  Rf4+ {[%clk 0:00:02]} 74. Kg6 {[%clk 0:00:03]}  Rg4+ {[%clk 0:00:02]} 75. Kf6 {[%clk 0:00:03]}  Kd7 {[%clk 0:00:01]} 76. Re7+ {[%clk 0:00:02]}  Kd8 {[%clk 0:00:01]} 77. Re5 {[%clk 0:00:02]}  Kd7 {[%clk 0:00:01]} 78. Rg5 {[%clk 0:00:02]}  Rf4+ {[%clk 0:00:01]} 79. Rf5 {[%clk 0:00:03]}  Rg4 {[%clk 0:00:01]} 80. Rg5 {[%clk 0:00:03]}  Rf4+ {[%clk 0:00:01]} 81. Kg6 {[%clk 0:00:04]} 1-0


[Site "https://www.chess.com"]